bitfinex/quotes_SOLUSD_20230702
["timestamp","ask_amount","ask_price","bid_price","bid_amount"]
[1688282641442,55.0,19.071,19.062,22.189]
[1688282641743,22.183,19.069,19.062,22.189]
[1688282641928,22.183,19.069,19.061,22.19]
[1688282642630,22.183,19.069,19.056,130.68977345]
[1688282642829,22.183,19.069,19.061,22.191]
[1688282645647,22.183,19.069,19.06,22.191]
[1688282646350,22.183,19.069,19.06,79.326]
[1688282647552,22.183,19.069,19.06,22.191]
[1688282647943,126.383,19.069,19.056,26.41977345]
[1688282648252,126.383,19.069,19.054,153.8201]
[1688282648448,126.383,19.069,19.054,96.6701]
[1688282648639,55.0,19.068,19.055,22.198]
[1688282648949,183.535,19.065,19.054,22.199]
[1688282649251,22.191,19.061,19.054,22.199]
[1688282650248,22.191,19.062,19.054,79.352]
[1688282652841,57.119,19.066,19.054,79.352]
[1688282653041,22.19,19.062,19.054,22.199]
[1688282655348,22.19,19.062,19.054,79.352]
[1688282656253,255.675,19.069,19.054,79.352]
[1688282656455,22.188,19.064,19.054,79.352]
[1688282656643,22.188,19.065,19.054,79.352]
[1688282677950,19.52,19.07,19.055,55.0]
[1688282678157,22.185,19.067,19.059,22.193]
[1688282684180,79.299,19.067,19.055,55.0]
[1688282684369,22.185,19.067,19.059,22.193]
[1688282684565,22.185,19.067,19.053,26.60457141]
[1688282684771,22.185,19.067,19.059,22.193]
[1688282688675,22.184,19.068,19.059,79.331]
[1688282688870,22.182,19.069,19.06,19.54]
[1688282689075,22.184,19.068,19.062,22.189]
[1688282690686,22.184,19.068,19.06,19.54]
[1688282690866,183.5,19.068,19.055,26.80153948]
[1688282691373,183.5,19.068,19.06,22.192]
[1688282692685,183.5,19.068,19.053,104.283]
[1688282692887,183.5,19.068,19.06,22.192]
[1688282696088,183.5,19.068,19.059,22.193]
[1688282697079,79.295,19.068,19.059,22.194]
[1688282697680,79.295,19.068,19.058,22.194]
[1688282701992,22.184,19.068,19.058,79.335]
[1688282702188,183.5,19.068,19.058,22.195]
[1688282702396,22.184,19.068,19.058,22.195]
[1688282703595,79.295,19.068,19.058,22.195]
[1688282706491,22.184,19.068,19.058,22.195]
[1688282709298,22.184,19.068,19.058,79.336]
[1688282709898,22.184,19.068,19.06,19.68]
[1688282710104,22.184,19.068,19.062,22.19]
[1688282710290,22.184,19.068,19.061,22.191]
[1688282711801,22.184,19.068,19.06,19.68]
[1688282711985,22.184,19.068,19.056,188.08657505]
[1688282712185,22.184,19.068,19.057,55.0]
[1688282712381,22.184,19.068,19.061,22.191]
[1688282713883,19.52,19.08,19.062,20.0]
[1688282714208,19.52,19.08,19.067,22.184]
[1688282715886,22.174,19.077,19.07,22.18]
[1688282717109,22.174,19.085,19.07,41.86]
[1688282717308,93.5431,19.092,19.071,75.0]
[1688282717494,22.16,19.089,19.076,183.416]
[1688282717703,22.16,19.089,19.077,55.0]
[1688282718009,22.16,19.089,19.08,22.169]
[1688282721207,25.74715676,19.094,19.08,41.709]
[1688282721394,25.74715676,19.094,19.084,183.337]
[1688282721595,8.97081877,19.099,19.084,183.337]
[1688282721797,22.153,19.094,19.084,183.337]
[1688282721993,8.97081877,19.099,19.084,183.337]
[1688282721994,22.152,19.096,19.085,55.0]
[1688282722206,22.152,19.095,19.088,22.16]
[1688282724207,192.21081877,19.095,19.08,57.075]
[1688282724413,19.61,19.09,19.074,90.7196]
[1688282724709,22.163,19.086,19.078,22.171]
[1688282725804,22.163,19.086,19.077,22.172]
[1688282727001,55.0,19.085,19.076,22.173]
[1688282727208,22.167,19.083,19.075,22.174]
[1688282727597,22.167,19.083,19.074,22.175]
[1688282733319,57.049,19.089,19.074,22.175]
[1688282733499,55.0,19.088,19.074,22.175]
[1688282733703,57.049,19.089,19.074,22.175]
[1688282733904,22.164,19.085,19.074,22.175]
[1688282743734,55.0,19.084,19.074,22.175]
[1688282744022,22.166,19.083,19.074,22.175]
[1688282744224,22.167,19.083,19.074,22.175]
[1688282744416,19.5,19.09,19.074,22.175]
[1688282744612,22.16,19.088,19.074,22.175]
[1688282744816,55.0,19.087,19.074,22.175]
[1688282745014,22.165,19.085,19.074,22.175]
[1688282745209,55.0,19.087,19.074,22.175]
[1688282745518,112.054,19.087,19.074,22.175]
[1688282746524,183.326,19.086,19.074,22.175]
[1688282746722,79.219,19.086,19.074,22.175]
[1688282747616,22.162,19.086,19.074,22.175]
[1688282749615,76.545,19.09,19.074,126.348]
[1688282749829,22.16,19.089,19.075,55.0]
[1688282750025,22.16,19.089,19.079,79.248]
[1688282750634,79.208,19.089,19.079,22.17]
[1688282750931,79.208,19.089,19.075,55.0]
[1688282751231,79.208,19.089,19.079,22.17]
[1688282752817,22.16,19.089,19.079,22.17]
[1688282754843,79.208,19.089,19.079,22.17]
[1688282755333,22.16,19.089,19.079,22.17]
[1688282758121,104.059,19.095,19.079,22.17]
[1688282758321,22.157,19.091,19.08,74.64]
[1688282758632,22.155,19.093,19.083,79.231]
[1688282758833,22.155,19.093,19.084,55.0]
[1688282759133,104.042,19.098,19.086,22.162]
[1688282759134,22.154,19.094,19.086,22.162]
[1688282762349,22.152,19.095,19.086,22.162]
[1688282762539,22.152,19.096,19.087,55.0]
[1688282762738,22.152,19.096,19.089,22.158]
[1688282767740,22.152,19.096,19.089,22.159]
[1688282769364,104.026,19.105,19.085,26.17911255]
[1688282769545,104.026,19.105,19.08,19.75]
[1688282769546,79.186,19.094,19.086,22.162]
[1688282769746,22.153,19.094,19.08,22.169]
[1688282770049,79.209,19.089,19.078,22.171]
[1688282770247,79.209,19.089,19.077,22.172]
[1688282770454,79.209,19.089,19.073,97.1138]
[1688282770645,183.351,19.084,19.073,119.2908]
[1688282770846,183.351,19.084,19.072,22.178]
[1688282771045,79.246,19.08,19.065,161.338]
[1688282771350,98.746,19.08,19.067,22.184]
[1688282771650,55.0,19.079,19.066,22.185]
[1688282771850,79.265,19.076,19.066,22.185]
[1688282773769,22.175,19.076,19.066,22.185]
[1688282775063,79.262,19.076,19.066,22.185]
[1688282776170,22.175,19.076,19.066,22.185]
[1688282778663,22.175,19.076,19.06,57.133]
[1688282778869,79.282,19.072,19.062,22.189]
[1688282779250,79.282,19.072,19.061,20.0]
[1688282779454,79.282,19.072,19.057,20.0]
[1688282779663,79.282,19.072,19.057,57.141]
[1688282779860,79.297,19.068,19.054,57.15]
[1688282780054,79.297,19.068,19.058,22.195]
[1688282780450,79.297,19.068,19.052,197.2721]
[1688282780753,79.313,19.064,19.055,22.198]
[1688282782551,22.187,19.065,19.055,126.475]
[1688282782968,22.187,19.065,19.055,22.198]
[1688282783760,79.307,19.065,19.055,22.198]
[1688282787165,22.187,19.065,19.055,22.198]
[1688282787359,22.187,19.065,19.056,55.0]
[1688282787558,22.187,19.065,19.058,22.194]
[1688282788653,79.307,19.065,19.056,22.197]
[1688282788956,79.307,19.065,19.054,22.199]
[1688282792758,22.187,19.065,19.054,22.199]
[1688282794487,22.187,19.065,19.055,55.0]
[1688282794792,22.187,19.066,19.058,22.195]
[1688282795774,98.1,19.09,19.06,19.46]
[1688282795976,22.178,19.073,19.064,22.187]
[1688282799275,57.085,19.077,19.064,22.187]
[1688282800281,22.174,19.076,19.064,22.187]
[1688282802368,22.174,19.076,19.068,79.293]
[1688282802971,22.171,19.079,19.068,79.293]
[1688282805173,79.249,19.079,19.068,22.183]
[1688282806972,55.0,19.078,19.067,22.183]
[1688282807176,79.265,19.075,19.067,22.183]
[1688282808873,22.175,19.075,19.067,22.183]
[1688282810892,22.175,19.075,19.065,22.186]
[1688282811189,161.254,19.076,19.065,22.186]
[1688282811190,22.179,19.072,19.065,22.186]
[1688282812585,22.178,19.073,19.065,22.186]
[1688282814390,22.181,19.07,19.065,22.186]
[1688282815082,8.97081877,19.08,19.065,22.186]
[1688282815299,57.059,19.086,19.066,7.05537001]
[1688282815484,22.166,19.083,19.072,79.276]
[1688282815989,20.0,19.082,19.072,22.178]
[1688282816195,22.17,19.079,19.072,22.178]
[1688282816377,22.17,19.079,19.067,57.111]
[1688282816582,55.0,19.078,19.067,57.111]
[1688282816886,22.174,19.077,19.072,22.178]
[1688282817282,55.0,19.078,19.072,22.178]
[1688282817683,77.173,19.078,19.072,22.178]
[1688282818579,77.071,19.082,19.072,22.177]
[1688282818978,42.168,19.082,19.072,79.276]
[1688282819178,57.062,19.085,19.072,79.276]
[1688282819179,22.165,19.085,19.072,79.276]
[1688282819495,98.22,19.1,19.077,79.254]
[1688282819696,20.0,19.092,19.077,79.254]
[1688282819895,22.159,19.09,19.077,79.254]
[1688282822706,79.204,19.09,19.077,79.254]
[1688282823078,22.163,19.086,19.077,79.254]
[1688282823288,22.163,19.086,19.077,22.172]
[1688282823886,22.163,19.086,19.07,57.103]
[1688282824086,22.167,19.082,19.074,22.176]
[1688282827184,22.167,19.082,19.071,22.18]
[1688282827385,55.0,19.081,19.064,57.122]
[1688282827593,22.174,19.076,19.066,22.185]
[1688282828295,79.261,19.076,19.065,22.186]
[1688282828485,55.0,19.075,19.065,22.186]
[1688282828681,22.179,19.072,19.065,22.186]
[1688282829191,22.177,19.074,19.065,79.306]
[1688282829376,26.48078857,19.096,19.065,90.14319922]
[1688282829377,104.118,19.085,19.065,90.14319922]
[1688282829583,19.63,19.09,19.065,90.14319922]
[1688282829584,22.172,19.078,19.066,17.90491318]
[1688282829779,79.253,19.078,19.068,22.182]
[1688282830086,22.176,19.075,19.068,22.182]
[1688282830596,19.63,19.09,19.069,55.0]
[1688282830804,22.165,19.084,19.075,22.175]
[1688282830985,22.165,19.084,19.07,39.56]
[1688282831190,22.165,19.084,19.07,42.18]
[1688282831500,79.248,19.08,19.07,42.18]
[1688282831897,55.0,19.079,19.07,42.18]
[1688282832198,22.174,19.077,19.07,42.18]
[1688282832600,22.174,19.077,19.062,94.6751]
[1688282832601,22.174,19.077,19.067,4.41177621]
[1688282832805,22.174,19.077,19.061,104.242]
[1688282832806,79.272,19.074,19.064,22.187]
[1688282832980,55.0,19.073,19.064,22.187]
[1688282833183,22.181,19.071,19.064,22.187]
[1688282833395,22.181,19.071,19.062,22.19]
[1688282833603,79.297,19.068,19.056,22.197]
[1688282833785,3.68220915,19.067,19.054,5.064562]
[1688282833988,22.189,19.064,19.054,22.199]
[1688282834803,55.0,19.067,19.054,22.199]
[1688282835109,55.0,19.068,19.054,22.199]
[1688282835436,22.188,19.065,19.055,5.10072431]
[1688282835698,22.187,19.066,19.058,22.195]
[1688282836592,55.0,19.065,19.052,57.158]
[1688282836790,22.191,19.062,19.055,22.198]
[1688282837393,55.0,19.065,19.055,22.198]
[1688282837907,22.189,19.064,19.055,22.198]
[1688282838095,55.0,19.063,19.055,22.198]
[1688282838601,55.0,19.064,19.055,22.198]
[1688282839493,55.0,19.065,19.055,22.198]
[1688282839800,77.187,19.065,19.055,22.198]
[1688282840303,20.0,19.064,19.055,22.198]
[1688282840495,22.191,19.062,19.055,22.198]
[1688282841004,55.0,19.061,19.055,22.198]
[1688282841598,55.0,19.061,19.042,26.51496793]
[1688282841599,134.324,19.061,19.05,57.164]
[1688282841801,77.192,19.061,19.054,22.199]
[1688282842804,57.164,19.063,19.054,22.199]
[1688282843102,57.116,19.067,19.054,79.352]
[1688282843301,20.0,19.066,19.054,79.352]
[1688282844204,22.189,19.063,19.055,5.50661485]
[1688282844399,22.189,19.063,19.056,22.197]
[1688282844787,22.193,19.06,19.055,22.197]
[1688282845187,22.193,19.06,19.054,22.198]
[1688282845400,22.193,19.06,19.055,22.198]
[1688282846509,22.193,19.06,19.051,57.159]
[1688282847211,22.193,19.06,19.053,22.2]
[1688282847413,57.116,19.067,19.053,79.356]
[1688282847707,22.188,19.065,19.058,22.194]
[1688282847911,22.188,19.064,19.058,79.335]
[1688282848093,57.11,19.069,19.058,79.335]
[1688282848296,22.188,19.065,19.058,22.194]
[1688282848498,22.187,19.065,19.058,79.335]
[1688282848800,22.187,19.065,19.058,22.194]
[1688282854090,161.294,19.072,19.058,22.194]
[1688282854396,79.294,19.068,19.052,161.446]
[1688282854599,22.187,19.065,19.059,22.193]
[1688282855198,22.187,19.065,19.057,22.195]
[1688282855496,22.187,19.065,19.055,22.197]
[1688282855896,22.187,19.065,19.055,126.474]
[1688282856097,22.187,19.065,19.056,4.65668931]
[1688282856298,22.187,19.065,19.058,22.194]
[1688282856498,22.186,19.066,19.058,22.194]
[1688282858017,8.97081877,19.071,19.058,22.194]
[1688282858216,22.184,19.068,19.059,5.51625176]
[1688282858520,22.184,19.068,19.061,22.191]
[1688282860414,22.183,19.069,19.061,22.191]
[1688282862613,150.1882,19.075,19.061,126.435]
[1688282862614,22.18,19.071,19.061,126.435]
[1688282862920,22.182,19.069,19.062,5.84828128]
[1688282863105,22.182,19.069,19.064,22.188]
[1688282865921,22.182,19.069,19.063,22.188]
[1688282866130,22.182,19.069,19.06,57.133]
[1688282866603,55.0,19.068,19.058,22.195]
[1688282866806,55.0,19.068,19.055,94.2634]
[1688282866807,22.187,19.065,19.055,94.2634]
[1688282867004,22.187,19.065,19.056,22.196]
[1688282867306,22.187,19.065,19.056,22.197]
[1688282869415,22.187,19.065,19.055,94.2634]
[1688282869617,55.0,19.064,19.055,22.198]
[1688282869817,22.191,19.062,19.055,22.198]
[1688282871825,22.19,19.063,19.055,79.348]
[1688282872018,55.0,19.064,19.055,79.348]
[1688282872218,77.189,19.064,19.055,79.348]
[1688282873128,77.189,19.064,19.055,22.198]
[1688282877324,77.189,19.064,19.055,79.348]
[1688282880442,119.7385,19.068,19.055,79.348]
[1688282880630,119.7385,19.068,19.056,5.24441125]
[1688282880827,119.7385,19.068,19.059,79.329]
[1688282881126,22.184,19.068,19.059,79.329]
[1688282881830,22.184,19.068,19.059,22.193]
[1688282883431,22.184,19.068,19.059,79.331]
[1688282883621,22.184,19.068,19.059,22.193]
[1688282884512,22.184,19.068,19.05,144.57215124]
[1688282884732,79.295,19.068,19.059,22.194]
[1688282886527,22.184,19.068,19.059,79.332]
[1688282886716,79.295,19.068,19.058,22.195]
[1688282887909,22.184,19.068,19.058,22.195]
[1688282888226,22.183,19.068,19.058,79.336]
[1688282889428,183.499,19.068,19.051,55.0]
[1688282889634,79.294,19.068,19.058,22.195]
[1688282892434,22.183,19.068,19.058,22.195]
[1688282893925,79.294,19.068,19.058,22.195]
[1688282895226,183.499,19.068,19.057,22.195]
[1688282895446,55.0,19.067,19.056,22.196]
[1688282895737,22.188,19.064,19.052,57.159]
[1688282895922,79.332,19.06,19.05,22.203]
[1688282896123,22.194,19.06,19.053,22.201]
[1688282896737,22.194,19.06,19.053,22.2]
[1688282897921,121.14581877,19.067,19.053,79.356]
[1688282898122,22.193,19.06,19.054,6.49442212]
[1688282898416,22.193,19.06,19.055,22.197]
[1688282900023,55.0,19.059,19.052,22.201]
[1688282900236,22.196,19.057,19.052,22.201]
[1688282900434,22.196,19.057,19.045,26.46998066]
[1688282900740,22.196,19.057,19.048,22.206]
[1688282901422,22.195,19.059,19.048,79.377]
[1688282901627,22.196,19.062,19.049,6.05534381]
[1688282901845,77.192,19.061,19.052,22.201]
[1688282902727,22.192,19.061,19.052,22.201]
[1688282904439,79.324,19.061,19.052,22.201]
[1688282905138,183.568,19.061,19.052,22.201]
[1688282905447,22.192,19.061,19.052,22.201]
[1688282906051,126.436,19.061,19.051,22.203]
[1688282906344,126.436,19.061,19.051,22.202]
[1688282906554,22.192,19.061,19.051,22.202]
[1688282908426,22.192,19.061,19.054,22.199]
[1688282913250,22.19,19.063,19.054,22.199]
[1688282917145,22.188,19.065,19.054,22.199]
[1688282917346,22.188,19.065,19.055,4.80622491]
[1688282917556,22.188,19.065,19.058,22.195]
[1688282918234,22.186,19.066,19.058,22.195]
[1688282918441,22.183,19.069,19.058,79.336]
[1688282918749,22.183,19.069,19.059,4.37150042]
[1688282918936,22.183,19.069,19.062,22.19]
[1688282921261,22.183,19.069,19.06,22.191]
[1688282921553,22.186,19.066,19.06,22.191]
[1688282928059,55.0,19.065,19.06,22.191]
[1688282928254,22.188,19.064,19.06,22.191]
[1688282928459,22.188,19.064,19.053,57.155]
[1688282928652,55.0,19.063,19.056,22.197]
[1688282928844,22.192,19.061,19.056,22.197]
[1688282929160,22.194,19.059,19.055,22.198]
[1688282929346,55.0,19.06,19.052,57.156]
[1688282929542,22.194,19.059,19.055,22.197]
[1688282930363,22.194,19.059,19.054,22.199]
[1688282930549,79.332,19.059,19.045,26.62160405]
[1688282930752,22.194,19.059,19.046,7.06994777]
[1688282931154,22.194,19.059,19.043,99.3746]
[1688282931155,22.194,19.059,19.044,13.63975952]
[1688282931759,22.194,19.059,19.053,22.2]
[1688282932153,22.194,19.059,19.052,22.201]
[1688282932456,22.194,19.059,19.049,57.168]
[1688282933853,22.194,19.059,19.053,22.2]
[1688282934067,55.0,19.058,19.053,22.2]
[1688282934257,22.197,19.057,19.053,22.2]
[1688282934453,22.197,19.057,19.052,22.201]
[1688282934854,21.197,19.057,19.052,22.201]
[1688282937163,21.197,19.057,19.046,104.326]
[1688282937357,21.197,19.057,19.051,22.202]
[1688282938569,21.197,19.057,19.05,22.203]
[1688282938757,21.197,19.057,19.047,57.174]
[1688282939370,21.197,19.057,19.051,22.203]
[1688282940070,78.341,19.057,19.047,22.207]
[1688282940271,21.197,19.057,19.048,22.206]
[1688282942072,55.0,19.056,19.048,22.206]
[1688282942369,22.2,19.054,19.048,22.206]
[1688282942560,55.0,19.056,19.048,22.206]
[1688282944880,22.199,19.055,19.048,22.206]
[1688282945282,22.198,19.056,19.048,22.206]
[1688282945482,57.132,19.061,19.048,22.206]
[1688282945687,22.196,19.058,19.049,6.14621796]
[1688282945983,112.126,19.063,19.051,22.202]
[1688282946187,57.126,19.063,19.052,4.58314233]
[1688282946390,22.192,19.061,19.052,4.58314233]
[1688282946572,22.192,19.061,19.056,22.197]
[1688282947284,22.192,19.061,19.055,22.197]
[1688282947490,22.192,19.061,19.054,22.199]
[1688282947671,22.192,19.061,19.053,22.2]
[1688282947672,79.324,19.061,19.053,22.2]
[1688282949578,22.192,19.061,19.053,22.2]
[1688282950489,57.162,19.067,19.05,19.67]
[1688282950695,6.34942391,19.066,19.053,22.2]
[1688282950882,22.186,19.066,19.054,11.45684608]
[1688282951195,22.186,19.066,19.057,79.337]
[1688282951679,22.186,19.066,19.057,22.195]
[1688282954093,19.67,19.07,19.051,55.0]
[1688282954397,22.186,19.066,19.057,22.195]
[1688282954702,22.186,19.066,19.052,77.156]
[1688282954703,22.186,19.066,19.052,20.0]
[1688282954898,22.186,19.066,19.053,27.62258821]
[1688282954899,55.0,19.065,19.053,27.62258821]
[1688282955104,55.0,19.065,19.046,130.55478011]
[1688282955105,79.322,19.062,19.046,26.23278011]
[1688282955288,79.322,19.062,19.05,22.204]
[1688282955498,55.0,19.061,19.046,57.176]
[1688282955804,55.0,19.061,19.048,22.206]
[1688282955805,22.197,19.057,19.048,22.206]
[1688282957209,55.0,19.061,19.043,99.6441]
[1688282957404,55.0,19.061,19.044,15.22447251]
[1688282957810,55.0,19.061,19.05,19.67]
[1688282958916,55.0,19.062,19.05,19.67]
[1688282964114,55.0,19.063,19.05,19.67]
[1688282968116,54.66093046,19.063,19.05,19.67]
[1688282972799,55.0,19.064,19.05,19.67]
[1688282972998,20.0,19.063,19.05,19.67]
[1688282973200,55.0,19.062,19.05,19.67]
[1688282973406,8.97263696,19.067,19.05,19.67]
[1688282973611,2.99992183,19.084,19.051,86.63106917]
[1688282973612,99.1722,19.071,19.051,86.63106917]
[1688282973809,4.03739411,19.069,19.051,86.63106917]
[1688282974502,4.03739411,19.069,19.052,92.4848]
[1688282974804,2.54214954,19.069,19.053,16.21717042]
[1688282975913,57.54214954,19.069,19.053,16.21717042]
[1688282976509,57.54214954,19.069,19.052,16.21717042]
[1688282978404,2.54214954,19.069,19.053,55.0]
[1688282978605,8.97263696,19.072,19.054,16.21717042]
[1688282978919,5.71313101,19.07,19.054,16.21717042]
[1688282980021,17.19296645,19.076,19.061,16.21717042]
[1688282980321,20.0,19.075,19.061,16.21717042]
[1688282980514,8.22032949,19.074,19.06,19.67]
[1688282980716,20.0,19.073,19.06,19.67]
[1688282981516,20.0,19.075,19.06,19.67]
[1688282981741,2.72877225,19.074,19.061,16.21717042]
[1688282981905,57.72877225,19.074,19.061,16.21717042]
[1688282982107,57.72877225,19.074,19.06,19.67]
[1688282982327,20.0,19.073,19.06,19.67]
[1688282985725,55.0,19.072,19.06,19.67]
[1688282987119,55.0,19.072,19.06,45.86265173]
[1688282987324,55.0,19.072,19.06,19.67]
[1688282987808,22.182,19.07,19.062,22.189]
[1688282990910,55.0,19.069,19.061,22.191]
[1688282991223,22.185,19.067,19.056,57.146]
[1688282991428,22.185,19.067,19.054,57.152]
[1688282991723,22.185,19.067,19.055,5.84363142]
[1688282992322,22.185,19.067,19.06,22.192]
[1688282998023,22.185,19.067,19.059,22.193]
[1688282998216,22.185,19.067,19.053,4.61173871]
[1688282999532,22.185,19.067,19.057,22.196]
[1688282999716,55.0,19.066,19.057,22.196]
[1688282999916,22.189,19.064,19.057,22.196]
[1688283000115,55.0,19.063,19.057,22.196]
[1688283000423,77.19,19.063,19.057,22.196]
[1688283000621,22.189,19.064,19.057,22.196]
[1688283000826,22.188,19.065,19.057,22.196]
[1688283001035,95.4483,19.068,19.057,22.196]
[1688283001835,22.188,19.064,19.057,22.196]
[1688283002515,57.152,19.072,19.057,22.196]
[1688283002833,22.174,19.076,19.069,22.182]
[1688283003032,22.173,19.077,19.069,22.182]
[1688283003336,19.67,19.08,19.069,22.182]
[1688283004016,41.84,19.08,19.069,22.182]
[1688283004817,22.169,19.081,19.07,19.67]
[1688283005132,22.169,19.081,19.073,79.272]
[1688283006637,22.169,19.081,19.073,22.177]
[1688283007135,31.14163696,19.081,19.072,22.179]
[1688283007321,31.14163696,19.081,19.071,22.179]
[1688283008037,22.172,19.078,19.071,22.179]
[1688283008333,55.0,19.08,19.071,22.179]
[1688283009034,77.17,19.08,19.071,22.179]
[1688283014839,77.17,19.08,19.063,26.80578346]
[1688283015049,7.76639348,19.079,19.067,4.5813901]
[1688283015225,7.76639348,19.079,19.063,57.125]
[1688283015226,79.266,19.075,19.063,22.189]
[1688283015433,26.78712492,19.074,19.06,22.191]
[1688283015746,183.483,19.07,19.06,22.191]
[1688283016243,22.185,19.067,19.06,22.191]
[1688283019745,22.185,19.067,19.054,26.02838474]
[1688283019929,79.299,19.067,19.056,22.196]
[1688283020134,55.0,19.066,19.056,22.196]
[1688283020337,22.189,19.063,19.056,22.196]
[1688283021557,55.0,19.066,19.056,22.196]
[1688283021850,55.0,19.067,19.056,22.196]
[1688283022057,57.104,19.071,19.057,5.00731474]
[1688283022252,22.182,19.07,19.061,79.321]
[1688283033674,22.182,19.07,19.061,22.191]
[1688283036684,22.178,19.073,19.062,75.0]
[1688283036890,57.086,19.077,19.065,22.186]
[1688283036891,22.177,19.074,19.065,22.186]
[1688283037390,22.176,19.075,19.065,22.186]
[1688283037583,22.176,19.075,19.066,5.0542316]
[1688283037778,22.175,19.076,19.068,22.182]
[1688283037996,22.174,19.076,19.068,22.182]
[1688283038184,22.186,19.084,19.068,22.182]
[1688283038390,20.0,19.083,19.069,68.12565398]
[1688283038582,22.168,19.082,19.073,79.272]
[1688283039599,22.168,19.082,19.073,22.177]
[1688283041295,55.0,19.081,19.073,22.177]
[1688283041495,22.171,19.079,19.073,22.177]
[1688283043095,22.169,19.081,19.073,22.177]
[1688283043393,20.0,19.083,19.073,22.177]
[1688283043394,22.168,19.082,19.073,22.177]
[1688283044995,55.0,19.081,19.068,57.11]
[1688283045198,22.171,19.079,19.072,22.178]
[1688283045397,22.171,19.079,19.073,22.177]
[1688283045598,22.171,19.079,19.072,22.178]
[1688283049303,22.171,19.079,19.071,22.179]
[1688283049496,55.0,19.078,19.071,22.179]
[1688283049703,22.174,19.076,19.071,22.179]
[1688283050579,22.173,19.077,19.071,22.179]
[1688283050789,57.07,19.082,19.071,79.281]
[1688283051384,22.173,19.078,19.071,22.179]
[1688283052107,55.0,19.077,19.071,22.179]
[1688283052400,22.175,19.076,19.071,22.179]
[1688283056394,57.076,19.08,19.071,22.179]
[1688283056581,22.173,19.077,19.071,22.179]
[1688283056787,20.0,19.083,19.071,22.179]
[1688283056990,20.0,19.084,19.071,22.179]